bitfinex/quotes_SOLUSD_20241022
["timestamp","ask_amount","ask_price","bid_price","bid_amount"]
[1729598255772,20.0,168.1,168.01,85.6188]
[1729598256066,20.822,168.09,167.99,10.85930704]
[1729598256255,20.0,168.1,167.99,10.85930704]
[1729598256458,5.9516,168.02,167.99,10.85930704]
[1729598256650,5.951,168.04,167.99,10.85930704]
[1729598257369,5.951,168.04,168.0,23.776884]
[1729598259570,5.9516,168.03,168.0,23.776884]
[1729598261260,16.4997,168.06,168.0,23.776884]
[1729598261443,5.9513,168.03,168.0,23.776884]
[1729598264762,5.9494,168.09,168.02,23.776884]
[1729598264971,5.9493,168.09,168.04,10.85930704]
[1729598266557,5.9499,168.07,168.02,23.776884]
[1729598266874,5.9505,168.06,168.02,23.776884]
[1729598267058,5.9508,168.05,168.0,23.776884]
[1729598267255,14.8729,168.09,168.0,23.776884]
[1729598267572,5.9512,168.04,167.99,10.85930704]
[1729598268171,5.9526,168.0,167.95,70.0]
[1729598268378,5.9526,168.0,167.95,80.85930704]
[1729598268563,5.952,168.01,167.95,80.85930704]
[1729598269468,5.952,168.01,167.96,23.776884]
[1729598272277,5.952,168.01,167.97,10.85930704]
[1729598272953,5.952,168.01,167.96,23.776884]
[1729598273156,5.952,168.01,167.96,34.63619104]
[1729598277886,20.0,168.04,167.96,34.63619104]
[1729598278462,5.9519,168.02,167.96,34.63619104]
[1729598279788,20.0,168.04,167.96,34.63619104]
[1729598279977,14.974,168.08,167.96,34.63619104]
[1729598279978,20.0,168.07,167.96,34.63619104]
[1729598280274,5.9515,168.03,167.96,34.63619104]
[1729598280481,5.9515,168.03,167.98,10.85930704]
[1729598281064,20.0,168.07,167.98,10.85930704]
[1729598281264,5.9517,168.02,167.98,10.85930704]
[1729598286387,20.0,168.07,167.98,10.85930704]
[1729598286684,5.9517,168.02,167.98,10.85930704]
[1729598293192,5.9517,168.02,167.96,23.776884]
[1729598293494,5.9517,168.02,167.98,10.85930704]
[1729598301593,5.9509,168.04,167.98,10.85930704]
[1729598301797,5.9513,168.03,167.98,10.85930704]
[1729598309491,12.4611,168.03,167.96,34.63619104]
[1729598309999,20.0,168.02,167.94,15.6685]
[1729598310208,5.9527,167.99,167.94,10.85930704]
[1729598310385,20.0,168.02,167.94,10.85930704]
[1729598311088,5.9524,168.0,167.94,10.85930704]
[1729598311293,5.9524,168.0,167.95,23.776884]
[1729598316794,5.9537,167.97,167.92,0.6226373]
[1729598322418,5.9537,167.97,167.92,11.48194434]
[1729598324025,20.0,168.0,167.92,0.6226373]
[1729598324207,5.954,167.96,167.92,0.6226373]
[1729598325128,5.9546,167.94,167.92,0.6226373]
[1729598327507,6.6199,167.96,167.92,0.6226373]
[1729598327825,5.9548,167.93,167.92,0.6226373]
[1729598330022,20.0,167.95,167.92,0.6226373]
[1729598330235,21.1014,167.97,167.92,0.6226373]
[1729598330524,5.9544,167.95,167.92,0.6226373]
[1729598330725,5.9545,167.94,167.92,0.6226373]
[1729598331630,5.9538,167.96,167.92,0.6226373]
[1729598331820,5.9541,167.96,167.92,0.6226373]
[1729598332006,5.9541,167.95,167.92,0.6226373]
[1729598332623,5.954,167.96,167.92,0.6226373]
[1729598332839,21.1014,167.97,167.92,0.6226373]
[1729598333219,5.9534,167.97,167.92,0.6226373]
[1729598333429,21.3388,168.0,167.93,34.63619104]
[1729598333430,5.9527,167.99,167.93,34.63619104]
[1729598336737,12.196,168.04,167.97,10.85930704]
[1729598336933,6.245,168.04,167.99,10.85930704]
[1729598337244,12.196,168.04,167.99,10.85930704]
[1729598339843,12.196,168.04,167.97,23.776884]
[1729598340133,12.196,168.04,167.99,23.776884]
[1729598340554,12.196,168.04,167.95,20.0]
[1729598340555,5.9523,168.01,167.95,20.0]
[1729598340716,20.0,168.03,167.95,34.63619104]
[1729598340915,5.9524,168.0,167.95,34.63619104]
[1729598341538,5.9521,168.01,167.95,34.63619104]
[1729598342938,5.9521,168.01,167.93,23.776884]
[1729598343143,5.9521,168.01,167.96,10.85930704]
[1729598343646,5.9535,167.97,167.92,0.6226373]
[1729598343842,5.9535,167.97,167.92,11.48194434]
[1729598344541,20.0,167.98,167.92,0.6226373]
[1729598344732,5.9542,167.95,167.92,0.6226373]
[1729598345145,5.9538,167.96,167.92,0.6226373]
[1729598345341,20.0,167.98,167.92,0.6226373]
[1729598345526,5.9539,167.96,167.92,0.6226373]
[1729598351526,5.953,167.98,167.93,10.85930704]
[1729598351933,5.9521,168.01,167.95,10.85930704]
[1729598352148,5.9516,168.02,167.94,10.85930704]
[1729598352347,5.9529,167.99,167.94,10.85930704]
[1729598358149,5.9539,167.96,167.93,10.85930704]
[1729598358353,5.9539,167.96,167.92,0.6226373]
[1729598360632,20.0,168.0,167.92,0.6226373]
[1729598360838,5.9544,167.95,167.92,0.6226373]
[1729598361867,5.9539,167.96,167.92,0.6226373]
[1729598364242,5.9539,167.96,167.92,11.48194434]
[1729598367161,5.9548,167.94,167.92,0.6226373]
[1729598368351,5.9548,167.93,167.92,0.6226373]
[1729598370280,20.0,167.95,167.92,0.6226373]
[1729598370578,5.9545,167.94,167.92,0.6226373]
[1729598371767,5.9542,167.95,167.92,0.6226373]
[1729598372142,2.9609967,167.92,167.89,10.85930704]
[1729598379166,2.9609967,167.92,167.91,10.85930704]
[1729598379472,2.9609967,167.92,167.91,34.63619104]
[1729598380562,2.9609967,167.92,167.9,23.776884]
[1729598380756,2.9609967,167.92,167.91,23.776884]
[1729598381145,2.9609967,167.92,167.91,34.63619104]
[1729598382256,2.9609967,167.92,167.91,23.776884]
[1729598382459,2.9609967,167.92,167.91,34.63619104]
[1729598384182,2.9609967,167.92,167.91,23.776884]
[1729598384385,2.9609967,167.92,167.91,34.63619104]
[1729598385480,2.9609967,167.92,167.86,16.3814]
[1729598385662,2.9609967,167.92,167.9,10.85930704]
[1729598393160,2.9609967,167.92,167.83,6.20504724]
[1729598393161,8.9161967,167.92,167.83,6.20504724]
[1729598393380,8.9161967,167.92,167.86,10.85930704]
[1729598394863,8.9161967,167.92,167.88,10.85930704]
[1729598395163,8.9161967,167.92,167.85,23.776884]
[1729598395164,2.9609967,167.92,167.9,10.85930704]
[1729598395884,2.9609967,167.92,167.86,20.0]
[1729598396086,2.9609967,167.92,167.89,10.85930704]
[1729598398373,2.9609967,167.92,167.87,10.85930704]
[1729598398690,8.9162967,167.92,167.87,10.85930704]
[1729598399874,5.9555,167.91,167.83,90.0]
[1729598400194,5.9555,167.91,167.87,10.85930704]
[1729598400511,5.9555,167.91,167.86,10.85930704]
[1729598401270,5.9555,167.91,167.84,23.776884]
[1729598401471,5.9555,167.91,167.86,10.85930704]
[1729598402086,9.3991967,167.92,167.74,70.1]
[1729598402087,36.3002,167.9,167.74,70.1]
[1729598402282,6.0716,167.89,167.83,10.85930704]
[1729598402480,22.9609967,167.92,167.87,10.85930704]
[1729598402689,2.9609967,167.92,167.87,10.85930704]
[1729598403395,2.9609967,167.92,167.88,10.85930704]
[1729598403988,2.9609967,167.92,167.9,10.85930704]
[1729598404688,2.9609967,167.92,167.88,23.776884]
[1729598404895,2.9609967,167.92,167.9,10.85930704]
[1729598406475,2.9609967,167.92,167.91,23.776884]
[1729598407907,2.9609967,167.92,167.88,10.85930704]
[1729598408083,2.9609967,167.92,167.9,10.85930704]
[1729598408399,2.9609967,167.92,167.89,70.0]
[1729598408598,2.9609967,167.92,167.91,10.85930704]
[1729598409204,2.9609967,167.92,167.91,34.63619104]
[1729598409875,2.9609967,167.92,167.91,10.85930704]
[1729598410081,2.9609967,167.92,167.91,34.63619104]
[1729598410480,2.9609967,167.92,167.89,70.0]
[1729598410481,2.9609967,167.92,167.9,23.776884]
[1729598410795,2.9609967,167.92,167.91,34.63619104]
[1729598411677,2.9609967,167.92,167.88,20.0]
[1729598411879,2.9609967,167.92,167.9,10.85930704]
[1729598412099,8.9162967,167.92,167.88,10.85930704]
[1729598412887,2.9609967,167.92,167.88,10.85930704]
[1729598414502,5.9556,167.91,167.87,10.85930704]
[1729598414689,5.9556,167.91,167.86,23.776884]
[1729598414892,8.9162967,167.92,167.87,10.85930704]
[1729598415289,8.9162967,167.92,167.89,10.85930704]
[1729598415679,8.9162967,167.92,167.87,10.85930704]
[1729598415876,5.9558,167.91,167.87,10.85930704]
[1729598417388,8.9161967,167.92,167.88,23.776884]
[1729598418488,2.9609967,167.92,167.88,23.776884]
[1729598420604,2.9609967,167.92,167.89,10.85930704]
[1729598420909,2.9609967,167.92,167.9,23.776884]
[1729598421402,2.9609967,167.92,167.89,23.776884]
[1729598421794,8.9161967,167.92,167.88,23.776884]
[1729598425697,5.9556,167.91,167.88,23.776884]
[1729598430194,5.9568,167.88,167.81,86.4445]
[1729598430798,5.957,167.87,167.81,86.4445]
[1729598431414,5.9575,167.86,167.8,10.85930704]
[1729598431716,5.9575,167.86,167.79,70.0]
[1729598432291,5.9581,167.84,167.77,85.9288]
[1729598432493,5.9581,167.84,167.77,96.78810704]
[1729598433422,5.9584,167.83,167.78,20.0]
[1729598433810,5.9584,167.83,167.77,96.78810704]
[1729598434218,5.9584,167.83,167.77,15.9288]
[1729598434523,5.9584,167.83,167.77,85.9288]
[1729598435017,5.9584,167.83,167.77,70.0]
[1729598435200,6.4165,167.85,167.78,23.776884]
[1729598435405,20.0,167.84,167.75,81.48194434]
[1729598435999,5.9591,167.81,167.75,81.48194434]
[1729598436610,5.959,167.82,167.76,23.776884]
[1729598438006,5.959,167.82,167.76,34.63619104]
[1729598438513,5.959,167.82,167.76,23.776884]
[1729598439399,5.9592,167.81,167.76,23.776884]
[1729598441208,20.0,167.84,167.75,0.6226373]
[1729598441417,5.9605,167.77,167.75,0.6226373]
[1729598441610,5.9608,167.76,167.75,0.6226373]
[1729598442923,48.8925,167.76,167.75,0.6226373]
[1729598443301,48.9925,167.76,167.75,0.6226373]
[1729598443915,72.769384,167.76,167.75,0.6226373]
[1729598444102,72.769384,167.76,167.61,70.0]
[1729598444103,5.9636,167.69,167.62,10.85930704]
[1729598444302,22.5636,167.69,167.59,70.6226373]
[1729598444528,5.9637,167.68,167.6,10.85930704]
[1729598445215,22.5636,167.69,167.59,0.6226373]
[1729598445415,5.9637,167.68,167.6,80.85930704]
[1729598445730,22.5636,167.69,167.62,10.85930704]
[1729598446519,22.5636,167.69,167.63,23.776884]
[1729598446702,12.5243,167.73,167.65,23.776884]
[1729598446903,5.9625,167.72,167.67,23.776884]
[1729598447706,12.5243,167.73,167.67,23.776884]
[1729598447917,16.5309,167.74,167.68,10.85930704]
[1729598448106,5.9608,167.76,167.69,23.776884]
[1729598448307,5.9614,167.75,167.69,23.776884]
[1729598448604,6.3178,167.77,167.62,15.8713]
[1729598448605,6.3178,167.77,167.64,20.0]
[1729598448815,5.9623,167.72,167.67,23.776884]
[1729598449024,6.3178,167.77,167.65,34.63619104]
[1729598449209,5.9623,167.73,167.65,34.63619104]
[1729598450232,5.9623,167.72,167.65,34.63619104]
[1729598451431,5.9623,167.72,167.65,23.776884]
[1729598451630,5.9623,167.72,167.67,23.776884]
[1729598452333,20.0,167.76,167.7,10.85930704]
[1729598452635,12.2785,167.77,167.71,23.776884]
[1729598452933,5.9609,167.76,167.71,23.776884]
[1729598453105,6.3178,167.77,167.64,90.0]
[1729598453306,12.2786,167.77,167.7,10.85930704]
[1729598453523,6.3178,167.77,167.71,23.776884]
[1729598453720,12.33750713,167.81,167.73,23.776884]
[1729598453924,5.9597,167.8,167.73,23.776884]
[1729598454126,5.9597,167.8,167.74,10.85930704]
[1729598454431,12.1167,167.81,167.75,23.776884]
[1729598456628,5.9596,167.8,167.75,23.776884]
[1729598457933,6.1576,167.81,167.76,10.85930704]
[1729598458223,6.6289,167.85,167.79,23.776884]
[1729598458422,6.6289,167.85,167.78,10.85930704]
[1729598458624,5.9589,167.82,167.78,10.85930704]
[1729598458939,5.9584,167.83,167.78,10.85930704]
[1729598459445,5.9591,167.82,167.75,10.85930704]
[1729598459618,6.6289,167.85,167.75,10.85930704]
[1729598459824,20.0,167.84,167.75,10.85930704]
[1729598460444,5.9591,167.81,167.75,10.85930704]
[1729598460642,20.0,167.84,167.75,10.85930704]
[1729598460935,5.9595,167.8,167.75,10.85930704]
[1729598462744,20.0,167.82,167.77,10.85930704]
[1729598462946,5.9589,167.82,167.77,10.85930704]
[1729598463534,5.9597,167.8,167.72,70.0]
[1729598463721,5.9597,167.8,167.75,23.776884]
[1729598464650,5.9597,167.8,167.64,6.1827442]
[1729598464651,20.0,167.78,167.64,6.1827442]
[1729598464824,20.0,167.78,167.65,70.0]
[1729598465023,5.9623,167.72,167.65,70.0]
[1729598465331,20.09993659,167.78,167.65,70.0]
[1729598465530,5.9612,167.75,167.65,80.85930704]
[1729598465744,5.9622,167.73,167.65,80.85930704]
[1729598466460,5.9622,167.73,167.66,23.776884]
[1729598467426,5.9623,167.72,167.66,23.776884]
[1729598471679,5.9616,167.74,167.66,23.776884]
[1729598471971,5.9614,167.75,167.68,23.776884]
[1729598472127,5.9616,167.74,167.68,23.776884]
[1729598472654,5.9613,167.75,167.68,23.776884]
[1729598473955,5.9617,167.74,167.68,23.776884]
[1729598478379,20.0,167.78,167.66,20.0]
[1729598478683,5.9629,167.71,167.66,20.0]
[1729598478875,5.9629,167.71,167.65,70.0]
[1729598479081,20.0,167.74,167.63,87.08222477]
[1729598479281,5.9629,167.71,167.63,87.08222477]
[1729598479479,20.0,167.74,167.63,87.08222477]
[1729598479798,5.9634,167.69,167.63,70.0]
[1729598480273,5.9631,167.7,167.63,70.0]
[1729598480465,5.9634,167.69,167.63,70.0]
[1729598481367,5.9634,167.69,167.64,23.776884]
[1729598482670,6.4917,167.73,167.66,23.776884]
[1729598482870,12.4537,167.73,167.66,23.776884]
[1729598483177,5.9625,167.72,167.66,23.776884]
[1729598484293,6.4917,167.73,167.66,23.776884]
[1729598484490,43.97682059,167.7,167.59,0.6226373]
[1729598484988,5.9662,167.62,167.59,0.6226373]
[1729598485191,43.97682059,167.7,167.59,0.6226373]
[1729598485489,5.9663,167.61,167.59,0.6226373]
[1729598485696,20.0,167.66,167.59,0.6226373]
[1729598485891,5.9652,167.64,167.59,0.6226373]
[1729598486591,22.6347,167.71,167.61,70.0]
[1729598486794,25.963,167.7,167.61,87.08222477]
[1729598486972,5.9636,167.69,167.62,23.776884]
[1729598487687,28.5975,167.71,167.64,93.776884]
[1729598487878,28.5975,167.71,167.65,23.776884]
[1729598488061,5.9631,167.7,167.65,23.776884]
[1729598489269,5.963,167.7,167.65,23.776884]
[1729598490594,29.90343659,167.77,167.65,23.776884]
[1729598490595,22.9132,167.75,167.69,70.0]
[1729598490792,6.347,167.75,167.7,23.776884]
[1729598493778,6.347,167.75,167.67,40.85910877]
[1729598494081,5.9616,167.74,167.67,40.85910877]
[1729598494585,12.3085,167.75,167.69,23.776884]
[1729598494789,6.347,167.75,167.69,23.776884]
[1729598495091,5.9617,167.74,167.69,23.776884]
[1729598496079,6.347,167.75,167.69,23.776884]
[1729598496361,5.9619,167.73,167.69,23.776884]
[1729598496485,6.347,167.75,167.69,23.776884]
[1729598496786,5.9616,167.74,167.69,23.776884]
[1729598497969,6.347,167.75,167.69,23.776884]
[1729598499181,12.3082,167.75,167.69,23.776884]
[1729598502002,5.9612,167.75,167.69,23.776884]
[1729598502886,6.6582,167.79,167.73,23.776884]
[1729598503085,22.426,167.83,167.75,70.0]
[1729598503303,5.9588,167.82,167.76,23.776884]
[1729598510010,20.0,167.82,167.76,23.776884]
[1729598510312,5.9593,167.81,167.76,23.776884]
[1729598511118,25.959,167.82,167.76,23.776884]
[1729598512110,20.0,167.82,167.76,23.776884]
[1729598512418,31.2209,167.87,167.78,23.776884]
[1729598512596,37.337,167.87,167.78,23.776884]
[1729598512928,5.9584,167.83,167.78,23.776884]
[1729598514999,5.9583,167.84,167.78,23.776884]
[1729598515423,5.9584,167.83,167.78,23.776884]
[1729598516423,5.9584,167.83,167.78,34.69426178]
[1729598518504,5.9581,167.84,167.78,34.69426178]
[1729598519521,22.4442,167.87,167.78,34.69426178]
[1729598519836,22.4442,167.87,167.81,23.776884]
[1729598520000,5.9574,167.86,167.82,10.91737778]
[1729598520520,4.69765256,167.85,167.81,10.91737778]
[1729598520722,5.9573,167.86,167.81,10.91737778]
[1729598520926,5.9573,167.86,167.82,23.776884]
[1729598521307,6.1161,167.87,167.82,23.776884]
[1729598521517,14.8901,167.9,167.77,15.8558]
[1729598521518,5.9561,167.9,167.84,23.776884]
[1729598521714,27.9394,167.91,167.86,23.776884]
[1729598521928,5.956,167.9,167.86,23.776884]
[1729598523424,12.2947,167.91,167.86,23.776884]
[1729598523739,5.9556,167.91,167.86,23.776884]
[1729598524526,8.9162967,167.92,167.86,23.776884]
[1729598525426,2.9609967,167.92,167.86,23.776884]
[1729598525607,2.9609967,167.92,167.87,10.91737778]
[1729598525799,2.9609967,167.92,167.88,23.776884]
[1729598531129,2.9609967,167.92,167.9,23.776884]
[1729598534205,6.0079,167.95,167.9,23.776884]
[1729598538215,20.0,167.95,167.92,23.776884]
[1729598538417,20.0,167.95,167.92,34.69426178]
[1729598538683,6.19353385,168.02,167.97,23.776884]
[1729598538895,5.9506,168.05,167.99,23.776884]
[1729598539017,5.9502,168.07,168.01,23.776884]
[1729598539445,5.957,168.08,168.03,70.0]
[1729598539643,5.957,168.08,168.04,23.776884]
[1729598539818,5.957,168.1,168.04,23.776884]
[1729598540019,5.957,168.08,168.04,23.776884]
[1729598541117,6.1569,168.11,168.04,23.776884]
[1729598541118,11.9058,168.1,168.04,23.776884]
[1729598541320,11.9058,168.1,168.04,34.69426178]
[1729598541531,6.1569,168.11,168.04,34.69426178]
[1729598541739,20.0,168.1,168.04,34.69426178]
[1729598542254,6.1569,168.11,168.06,23.776884]
[1729598542819,12.1053,168.11,168.06,23.776884]
[1729598543249,6.0161,168.15,168.07,70.0]
[1729598543539,5.9474,168.14,168.08,23.776884]
[1729598543719,6.0161,168.15,168.08,23.776884]
[1729598544151,2.960997,168.1,168.08,23.776884]
[1729598547246,2.960997,168.1,168.09,93.776884]
[1729598547436,2.960997,168.1,168.08,23.776884]
[1729598547747,2.960997,168.1,168.0,70.0]
[1729598547941,2.960997,168.1,167.98,79.45738609]
[1729598548140,5.9509,168.05,167.98,79.45738609]
[1729598548331,20.0,168.07,167.98,79.45738609]
[1729598548943,5.9502,168.06,167.98,79.45738609]
[1729598549541,5.9507,168.05,167.99,23.776884]
[1729598551255,5.9517,168.02,167.98,9.45738609]
[1729598551448,20.0,168.05,167.97,23.776884]
[1729598551651,5.9516,168.03,167.96,70.0]
[1729598552968,5.9516,168.03,167.97,23.776884]
[1729598553812,20.0,168.05,167.97,23.776884]
[1729598553960,5.9499,168.07,168.01,23.776884]
[1729598556355,22.503,168.08,168.01,23.776884]
[1729598556564,5.9503,168.06,168.01,23.776884]
[1729598557144,5.9499,168.07,167.98,87.00392303]
[1729598557460,5.9499,168.07,167.97,43.776884]
[1729598557461,20.0,168.07,167.97,43.776884]
[1729598557655,5.9519,168.02,167.94,87.00392303]
[1729598557869,5.9519,168.02,167.95,20.0]
[1729598558047,5.952,168.01,167.95,20.0]
[1729598558362,5.952,168.01,167.94,87.00392303]
[1729598559369,5.952,168.01,167.95,23.776884]
[1729598562744,5.952,168.01,167.95,20.815887]
[1729598563873,14.8756,168.06,167.96,70.0]
[1729598564083,5.9509,168.04,167.96,70.0]
[1729598564253,5.9514,168.03,167.96,70.0]
[1729598564765,22.503,168.08,167.99,70.0]
[1729598564964,5.9501,168.07,167.99,70.0]
[1729598565276,5.9501,168.07,168.0,23.776884]
[1729598566073,20.0,168.06,168.0,23.776884]
[1729598566575,5.9506,168.05,167.99,70.0]
[1729598567275,5.9503,168.06,167.99,93.776884]
[1729598567567,28.4526,168.08,168.01,70.0]
[1729598567756,27.6207,168.12,168.04,87.00392303]
[1729598567954,27.6207,168.12,168.05,23.776884]
[1729598568371,21.6726,168.12,168.05,23.776884]
[1729598569456,27.6208,168.12,168.05,23.776884]
[1729598571878,27.6208,168.12,168.06,70.0]
[1729598572055,12.4238,168.12,168.06,70.0]
[1729598572254,12.4238,168.12,168.06,87.00392303]
[1729598572772,6.4756,168.12,168.05,23.776884]
[1729598572975,5.9485,168.11,168.05,23.776884]
[1729598573157,12.4238,168.12,168.05,23.776884]
[1729598577484,5.9484,168.11,168.05,23.776884]
[1729598580577,15.6706,168.16,168.05,23.776884]
[1729598580578,5.9479,168.13,168.07,70.0]
[1729598580959,21.6776,168.16,168.07,70.0]
[1729598580960,21.6776,168.16,168.08,23.776884]
[1729598581279,5.9471,168.15,168.08,40.78080703]
[1729598582171,20.0,168.15,168.05,70.0]
[1729598582367,5.9486,168.11,168.05,70.0]
[1729598583672,5.948,168.13,168.07,17.00392303]
[1729598583999,21.6776,168.16,168.08,23.776884]
[1729598584181,5.9476,168.14,168.08,23.776884]
[1729598585079,6.007,168.16,168.11,70.0]
[1729598585262,11.9538,168.16,168.11,70.0]
[1729598586971,20.0,168.17,168.11,70.0]
[1729598587183,25.9463,168.17,168.11,70.0]
[1729598589089,5.9463,168.17,168.11,70.0]
[1729598589789,5.9472,168.15,168.09,87.00392303]
[1729598589992,20.0,168.16,168.07,85.6379]
[1729598590290,20.0,168.16,168.1,10.87649305]
[1729598590588,5.9473,168.15,168.1,10.87649305]
[1729598591482,20.0,168.16,168.09,70.0]
[1729598591683,5.9488,168.1,168.06,70.0]
[1729598591889,20.72257389,168.18,168.06,80.87649305]
[1729598592070,5.9485,168.11,168.06,80.87649305]
[1729598592269,5.9485,168.11,168.06,70.0]
[1729598593200,5.9489,168.1,168.06,70.0]
[1729598595186,5.9481,168.12,168.06,70.0]
[1729598595373,5.9479,168.13,168.07,23.776884]
[1729598596073,20.0,168.16,168.09,70.0]
[1729598596291,6.6186,168.17,168.11,70.0]
[1729598596589,6.5687373,168.18,168.12,23.776884]
[1729598597990,6.5687373,168.18,168.13,70.0]
[1729598601895,0.6226373,168.18,168.13,70.0]
[1729598602093,0.6226373,168.18,168.14,23.776884]
[1729598604600,0.6226373,168.18,168.1,15.9113]
[1729598604601,0.6226373,168.18,168.17,93.776884]
[1729598608417,6.5686373,168.18,168.13,70.0]
[1729598608638,0.6226373,168.18,168.13,70.0]
[1729598609811,0.6226373,168.18,168.14,23.776884]
[1729598610599,0.6226373,168.18,168.16,70.0]
[1729598615009,0.6226373,168.18,168.12,70.0]
[1729598615225,20.6226373,168.18,168.08,87.00280373]
[1729598615513,20.6226373,168.18,168.05,16.3819]
[1729598615514,5.9487,168.11,168.06,70.0]
[1729598616131,14.8667,168.16,168.06,70.0]
[1729598616285,5.948,168.13,168.07,10.88020304]
[1729598617022,5.947,168.16,168.11,80.88020304]
[1729598617805,0.6226373,168.18,168.11,80.88020304]
[1729598618013,6.5686373,168.18,168.13,80.88020304]
[1729598618311,0.6226373,168.18,168.14,23.776884]
[1729598619101,0.6226373,168.18,168.16,23.776884]
[1729598621428,0.6226373,168.18,168.17,93.776884]
[1729598625339,0.6226373,168.18,168.14,70.0]
[1729598626948,0.6226373,168.18,168.15,23.776884]
[1729598637031,0.6226373,168.18,168.16,70.0]
[1729598637326,0.6226373,168.18,168.12,70.0]
[1729598637535,5.9469,168.16,168.12,70.0]
[1729598638730,5.9469,168.16,168.11,10.87474688]
[1729598639035,20.0,168.14,168.06,80.87474688]
[1729598639241,5.9484,168.12,168.06,80.87474688]
[1729598640227,5.9484,168.12,168.06,70.0]
[1729598640629,5.9488,168.11,168.06,70.0]
[1729598641235,5.9488,168.11,168.04,70.0]
[1729598641437,6.4876,168.1,168.04,70.0]
[1729598641642,6.4876,168.1,168.06,70.0]
[1729598642856,5.9482,168.12,168.06,70.0]
[1729598644142,20.0,168.13,168.06,70.0]
[1729598644539,5.9485,168.11,168.06,70.0]
[1729598654553,5.95,168.07,168.02,70.0]
[1729598657078,5.9491,168.1,168.04,70.0]
[1729598657462,6.0389,168.14,168.06,70.0]
[1729598657655,5.9485,168.11,168.06,70.0]
[1729598662375,5.9485,168.11,168.06,80.88153497]
[1729598663125,5.9485,168.11,168.06,70.0]
[1729598664675,6.0389,168.14,168.06,70.0]
[1729598664676,6.0389,168.14,168.08,70.0]
[1729598664970,15.1299,168.17,168.09,23.776884]
[1729598665285,5.9474,168.14,168.09,23.776884]
[1729598670666,5.9498,168.08,168.02,80.88153497]
[1729598671467,20.0,168.07,167.99,79.94835303]
[1729598671665,16.0681,168.1,167.99,79.94835303]
[1729598671666,5.951,168.04,167.99,79.94835303]
[1729598672071,5.9497,168.08,168.01,70.0]
[1729598672265,5.95,168.07,168.01,70.0]
[1729598672791,5.9508,168.05,167.99,79.94835303]
[1729598675481,20.0,168.09,168.01,70.0]
[1729598675861,5.9495,168.08,168.02,23.776884]
[1729598676550,20.0,168.09,168.02,23.776884]
[1729598677475,5.9503,168.06,167.99,79.94835303]
[1729598677678,5.9503,168.06,168.0,23.776884]
[1729598677872,5.9503,168.06,168.01,70.0]
[1729598680583,16.0681,168.1,168.04,70.0]
[1729598680964,5.9492,168.09,168.04,70.0]
[1729598681285,5.9501,168.07,168.02,23.776884]
[1729598682683,16.0681,168.1,167.99,70.0]
[1729598682684,5.9507,168.05,167.99,70.0]
[1729598682980,34.8729,168.09,167.99,70.0]
[1729598683159,5.9502,168.06,167.99,70.0]
[1729598684297,5.9492,168.09,168.03,70.0]
[1729598685190,5.9496,168.08,168.03,70.0]
[1729598685687,16.0681,168.1,168.04,23.776884]
[1729598685872,22.0169,168.1,168.04,23.776884]
[1729598686071,5.9488,168.1,168.04,23.776884]
[1729598686274,5.9488,168.1,168.05,70.0]
[1729598688693,5.9496,168.08,168.03,70.0]
[1729598688889,5.9502,168.07,168.02,23.776884]
[1729598689195,5.9502,168.07,168.01,70.0]
[1729598689384,5.9502,168.06,168.01,70.0]
[1729598690094,20.0,168.12,167.99,70.0]
[1729598690297,20.0,168.09,167.99,70.0]
[1729598690469,5.951,168.04,167.99,70.0]
[1729598692172,5.9507,168.05,168.0,23.776884]
[1729598700410,5.9509,168.04,168.0,23.776884]